bitfinex-derivatives/quotes_ETHF0:USTF0_20250309
["timestamp","ask_amount","ask_price","bid_price","bid_amount"]
[1741556116709,0.0073959,2023.5,2023.2,3.2078]
[1741556116900,0.98856,2023.3,2023.2,3.2078]
[1741556117714,0.98861,2023.2,2023.1,0.0073959]
[1741556118512,5.6581959,2023.5,2023.1,0.0073959]
[1741556118715,0.98851,2023.4,2023.1,0.9960259]
[1741556118915,6.6466759,2023.5,2023.3,0.98855]
[1741556119112,0.98854,2023.4,2023.2,0.98859]
[1741556119324,5.6581959,2023.5,2023.1,0.0073959]
[1741556119521,0.98861,2023.2,2023.1,0.0073959]
[1741556120310,4.19641,2023.2,2023.1,0.0073959]
[1741556121719,2.47165,2023.1,2022.3,3.2078]
[1741556122010,3.2078,2022.9,2022.5,0.98893]
[1741556122218,0.98883,2022.8,2022.5,0.98892]
[1741556122409,0.98888,2022.7,2022.4,0.98897]
[1741556122611,3.2078,2022.9,2022.3,3.2078]
[1741556122912,1.9678,2023.1,2022.3,3.21521491]
[1741556123117,0.9887,2023.0,2022.8,0.98878]
[1741556123620,0.98878,2022.9,2022.6,0.98886]
[1741556123819,1.9678,2023.1,2022.3,3.21521491]
[1741556124011,0.98883,2022.8,2022.5,0.98895]
[1741556124422,0.98884,2022.8,2022.5,0.98894]
[1741556124618,0.98887,2022.7,2022.4,0.98898]
[1741556124818,3.2078,2022.8,2022.3,3.21521491]
[1741556125015,3.2078,2022.8,2022.3,0.00741491]
[1741556125317,0.98893,2022.6,2022.3,0.99645491]
[1741556126022,0.98898,2022.5,2022.3,0.00741491]
[1741556126213,0.989,2022.4,2022.3,0.00741491]
[1741556129319,3.2078,2022.5,2022.3,0.00741491]
[1741556129623,1.428,2023.2,2023.1,0.98866]
[1741556129915,0.0073959,2023.5,2022.9,3.2078]
[1741556130119,0.0073959,2023.5,2023.0,4.1165]
[1741556130310,0.9958759,2023.5,2023.2,0.98858]
[1741556130510,0.0073959,2023.5,2023.3,0.98853]
[1741556130719,0.0073959,2023.5,2023.4,0.98851]
[1741556131221,6.25889,2024.5,2024.2,0.98807]
[1741556131422,3.2078,2024.5,2024.4,0.98802]
[1741556131624,3.2078,2025.0,2024.0,3.2078]
[1741556132014,3.2078,2025.0,2024.3,0.98803]
[1741556132218,0.00741491,2024.7,2024.3,0.00741491]
[1741556132532,0.00741491,2024.7,2024.6,0.98792]
[1741556132711,2.0631,2025.4,2024.6,3.2078]
[1741556132912,0.98742,2025.7,2025.3,0.98756]
[1741556133126,3.2078,2025.9,2025.0,2.444]
[1741556133316,0.98752,2025.5,2025.2,0.98762]
[1741556133614,0.98746,2025.6,2025.2,0.98761]
[1741556133816,3.2078,2025.9,2025.0,2.444]
[1741556133817,0.98761,2025.3,2025.0,2.444]
[1741556134021,0.00741491,2025.6,2025.2,0.00741491]
[1741556134221,0.98752,2025.5,2025.2,0.00741491]
[1741556134417,0.98754,2025.4,2025.2,0.00741491]
[1741556134612,3.21521491,2025.6,2025.2,0.00741491]
[1741556134819,0.98758,2025.3,2025.2,0.00741491]
[1741556136718,8.3388591,2025.3,2024.2,0.4944]
[1741556136920,3.2078,2024.8,2023.8,2.442]
[1741556137227,0.98809,2024.3,2023.9,0.98823]
[1741556137413,0.98813,2024.2,2023.8,2.442]
[1741556137618,0.98813,2024.2,2023.8,3.43027]
[1741556137922,0.00741491,2024.2,2023.9,0.98823]
[1741556138428,3.21521491,2024.2,2023.8,3.21521491]
[1741556138627,0.98819,2024.1,2023.8,0.99572491]
[1741556138928,0.98818,2024.1,2023.8,4.20352491]
[1741556139228,0.98818,2024.1,2023.8,3.21521491]
[1741556139426,0.98827,2024.0,2023.8,3.21521491]
[1741556139627,0.98827,2023.9,2023.8,0.00741491]
[1741556139825,4.19607,2023.9,2023.8,0.00741491]
[1741556140130,0.98853,2023.4,2023.1,9.08265]
[1741556140429,5.67848,2023.9,2023.1,5.145]
[1741556140640,0.98861,2023.2,2023.1,3.2078]
[1741556140823,3.2078,2023.5,2022.7,5.6498]
[1741556141033,0.98873,2023.0,2022.7,5.6498]
[1741556141226,3.2078,2023.2,2022.7,5.6498]
[1741556141533,0.98877,2022.9,2022.7,5.6498]
[1741556141721,0.98877,2022.9,2022.7,3.2078]
[1741556141923,0.00741491,2023.1,2022.6,2.03321491]
[1741556142123,0.98879,2022.9,2022.6,2.03321491]
[1741556142528,0.00741491,2023.1,2022.6,0.00741491]
[1741556142726,0.98877,2022.9,2022.6,0.99628491]
[1741556142930,0.00741491,2023.1,2022.6,0.99628491]
[1741556143324,0.98878,2022.9,2022.6,0.99628491]
[1741556143524,0.98878,2022.9,2022.6,4.20408491]
[1741556143734,0.98878,2022.9,2022.6,3.21521491]
[1741556144931,0.00741491,2023.1,2022.6,4.20409491]
[1741556145136,0.98879,2022.9,2022.6,4.20409491]
[1741556145328,0.00741491,2023.1,2022.6,4.20409491]
[1741556145528,0.98879,2022.9,2022.6,4.20409491]
[1741556146135,0.9888,2022.8,2022.6,0.00741491]
[1741556146329,0.00741491,2023.1,2022.6,0.00741491]
[1741556146537,0.98879,2022.9,2022.6,0.99628491]
[1741556146836,0.98879,2022.9,2022.6,0.99627491]
[1741556147338,0.98883,2022.8,2022.6,0.00741491]
[1741556148533,0.00741491,2023.1,2022.6,0.00741491]
[1741556148932,0.98884,2022.8,2022.6,0.00741491]
[1741556149137,0.98884,2022.8,2022.6,0.99631491]
[1741556149331,0.98884,2022.8,2022.6,0.00741491]
[1741556149524,0.00741491,2023.1,2022.6,0.00741491]
[1741556149732,0.00741491,2023.1,2022.6,0.99626491]
[1741556149933,0.9888,2022.9,2022.6,0.99626491]
[1741556150132,0.9888,2022.9,2022.7,0.98885]
[1741556150340,0.00741491,2023.1,2022.6,0.99626491]
[1741556150639,0.98879,2022.9,2022.7,0.98885]
[1741556150939,0.9888,2022.8,2022.6,0.99628491]
[1741556151141,0.00741491,2023.1,2022.6,0.99627491]
[1741556151544,0.00741491,2023.1,2023.0,0.9887]
[1741556151840,3.8991991,2023.8,2023.6,0.98841]
[1741556152143,3.2078,2024.0,2023.1,2.47161]
[1741556152144,0.98827,2023.9,2023.7,0.98833]
[1741556152642,3.2078,2024.0,2023.3,5.6792]
[1741556152834,0.98834,2023.8,2023.6,0.98839]
[1741556153036,0.99575491,2023.8,2023.4,0.00741491]
[1741556153233,0.99574491,2023.8,2023.6,0.98838]
[1741556154238,0.00741491,2023.8,2023.7,0.98836]
[1741556159239,0.99575491,2023.8,2023.6,4.19618]
[1741556159634,0.98836,2023.7,2023.6,3.2078]
[1741556160433,0.00741491,2023.8,2023.6,3.2078]
[1741556160636,0.98846,2023.5,2023.4,0.00741491]
[1741556162338,0.98877,2022.9,2022.7,6.63863]
[1741556163537,0.98877,2022.9,2022.7,5.6498]
[1741556163742,0.98874,2023.0,2022.7,5.6498]
[1741556163937,3.2078,2023.2,2022.8,0.98876]
[1741556164142,0.98875,2022.9,2022.7,5.6498]
[1741556164341,3.2078,2023.2,2022.7,5.6498]
[1741556164641,0.98877,2022.9,2022.7,6.63862]
[1741556164842,0.98877,2022.9,2022.7,4.19662]
[1741556165338,0.98877,2022.9,2022.8,0.9888]
[1741556166137,3.2078,2023.2,2022.9,0.98874]
[1741556166341,3.2078,2023.2,2022.7,3.2078]
[1741556166644,4.19644,2023.2,2023.0,0.98867]
[1741556167140,0.98864,2023.2,2023.0,0.98867]
[1741556167342,0.98868,2023.1,2022.7,3.2078]
[1741556167543,1.9639,2023.4,2023.0,0.9887]
[1741556168041,0.98864,2023.2,2023.0,0.9887]
[1741556168344,0.98872,2023.0,2022.7,3.2078]
[1741556168643,0.98872,2023.0,2022.8,0.98876]
[1741556169041,0.98872,2023.0,2022.7,3.2078]
[1741556169544,0.98878,2022.9,2022.7,3.2078]
[1741556169745,0.98878,2022.9,2022.8,0.9888]
[1741556170045,0.98874,2023.0,2022.8,0.9888]
[1741556170245,0.98874,2023.0,2022.8,0.98877]
[1741556171445,0.98874,2023.0,2022.9,0.98873]
[1741556171446,0.98871,2023.0,2022.9,0.98873]
[1741556171637,0.9887,2023.0,2022.9,0.98873]
[1741556172644,0.98868,2023.1,2022.7,3.2078]
[1741556172844,0.9887,2023.1,2022.9,0.98873]
[1741556173046,1.9639,2023.4,2022.7,3.2078]
[1741556173244,0.98868,2023.1,2022.9,0.98871]
[1741556173647,0.98868,2023.1,2023.0,0.9887]
[1741556173850,4.43523,2023.4,2022.6,2.47959491]
[1741556174045,0.98872,2023.0,2022.9,0.98875]
[1741556174245,0.98869,2023.1,2022.9,0.98875]
[1741556174843,0.98872,2023.0,2022.9,0.98873]
[1741556176350,0.98872,2023.0,2022.9,0.98875]
[1741556176642,3.2078,2023.2,2022.7,3.2078]
[1741556176848,0.98869,2023.1,2022.9,0.98872]
[1741556177051,3.2078,2023.2,2022.9,0.98872]
[1741556177356,0.9887,2023.0,2022.9,0.98872]
[1741556178349,5.67935,2023.2,2022.7,3.2078]
[1741556178545,5.67935,2023.2,2022.8,0.9888]
[1741556178546,0.98879,2022.9,2022.8,0.9888]
[1741556180442,5.67938,2023.2,2022.7,3.2078]
[1741556180647,0.98879,2022.9,2022.8,0.9888]
[1741556180840,5.67938,2023.2,2022.8,0.9888]
[1741556181047,0.98875,2022.9,2022.8,0.9888]
[1741556182951,5.67934,2023.2,2022.7,3.2078]
[1741556183153,5.67934,2023.2,2022.8,0.98879]
[1741556183154,0.98878,2022.9,2022.8,0.98879]
[1741556183654,0.9888,2022.8,2022.7,3.2078]
[1741556183852,0.98885,2022.7,2022.6,0.00741491]
[1741556184148,0.98885,2022.7,2022.6,0.99631491]
[1741556184648,2.47214,2022.7,2022.1,0.98911]
[1741556184847,0.98907,2022.3,2022.1,0.98911]
[1741556185048,5.2236,2022.6,2021.9,2.441]
[1741556185256,0.98913,2022.2,2022.0,0.98917]
[1741556185556,0.98913,2022.2,2022.0,0.98919]
[1741556185850,0.98912,2022.2,2022.0,0.98919]
[1741556186156,0.00741491,2022.3,2021.9,2.44599903]
[1741556186654,0.99646491,2022.3,2022.2,0.9891]
[1741556187148,0.00741491,2022.3,2022.2,0.9891]
[1741556188350,0.98866,2023.1,2022.6,2.47221]
[1741556188545,0.98866,2023.1,2022.9,0.98872]
[1741556188744,0.98867,2023.1,2023.0,0.98869]
[1741556188949,1.9722,2023.2,2022.7,3.2078]
[1741556189153,0.98874,2023.0,2022.7,3.2078]
[1741556189356,0.98874,2023.0,2022.8,0.98878]
[1741556189553,0.00741491,2023.1,2022.7,3.2078]
[1741556189753,0.00741491,2023.1,2022.8,0.98877]
[1741556189754,0.98873,2023.0,2022.8,0.98877]
[1741556191457,0.98878,2022.9,2022.7,3.2078]
[1741556191659,0.98873,2023.0,2022.8,0.98877]
[1741556192247,0.00741491,2023.1,2022.7,3.2078]
[1741556192447,0.00741491,2023.1,2022.7,4.19661]
[1741556192649,0.9888,2022.8,2022.7,3.2078]
[1741556193058,0.98877,2022.9,2022.7,3.2078]
[1741556193250,0.98877,2022.9,2022.8,0.98879]
[1741556194358,0.00741491,2023.1,2022.7,3.2078]
[1741556194558,0.98871,2023.0,2022.9,0.98874]
[1741556194757,0.98876,2022.9,2022.8,0.98878]
[1741556195355,0.00741491,2023.1,2022.7,0.98884]
[1741556195553,0.98884,2022.8,2022.6,5.05647]
[1741556195758,0.98882,2022.8,2022.7,0.98885]
[1741556196060,0.00741491,2023.1,2022.8,0.98878]
[1741556196559,0.98875,2022.9,2022.8,0.98878]
[1741556197861,0.00741491,2023.1,2022.7,0.98883]
[1741556198159,0.9888,2022.9,2022.8,0.9888]
[1741556198353,0.9888,2022.9,2022.6,4.0676]
[1741556198554,0.98879,2022.9,2022.7,0.98885]
[1741556198750,3.2078,2022.9,2022.4,3.2078]
[1741556199059,0.98895,2022.5,2022.4,3.2078]
[1741556199259,0.98908,2022.3,2022.1,10.61651]
[1741556199563,0.9891,2022.2,2022.1,3.2078]
[1741556200063,2.47242,2022.5,2021.9,0.99420903]
[1741556200263,0.98915,2022.1,2021.9,0.00499903]
[1741556200564,0.98915,2022.1,2021.9,0.99421903]
[1741556200957,2.47242,2022.5,2021.9,0.99421903]
[1741556200958,0.98913,2022.2,2022.0,0.98919]
[1741556201365,0.98914,2022.1,2021.9,0.99420903]
[1741556201569,0.98919,2022.0,2021.9,0.00499903]
[1741556202564,3.2078,2022.3,2021.9,0.00499903]
[1741556202968,0.98919,2022.0,2021.9,0.00499903]
[1741556206364,3.2078,2022.3,2021.9,0.00499903]
[1741556206662,0.98918,2022.1,2021.9,0.99421903]
[1741556206965,3.2078,2022.3,2021.9,0.99421903]
[1741556207661,3.2078,2022.3,2021.9,0.00499903]
[1741556207865,0.98919,2022.0,2021.9,0.00499903]
[1741556208564,1.428,2022.5,2022.2,0.9891]
[1741556208765,0.98872,2023.0,2022.9,0.98875]
[1741556208963,0.98872,2023.0,2022.4,2.4725]
[1741556208964,0.00741491,2023.1,2023.0,0.9887]
[1741556209163,0.00741491,2023.1,2022.9,0.98873]
[1741556209164,0.99610491,2023.1,2022.9,0.98873]
[1741556209365,0.9887,2023.0,2022.9,0.98873]
[1741556209561,0.9887,2023.0,2022.8,0.98878]
[1741556209762,0.00741491,2023.1,2022.8,0.98878]
[1741556209963,0.98874,2023.0,2022.8,0.98878]
[1741556210663,0.98875,2022.9,2022.8,0.98878]
[1741556210867,0.00741491,2023.1,2022.6,3.2078]
[1741556211163,0.98873,2023.0,2022.8,0.98876]
[1741556211771,0.00741491,2023.1,2022.8,0.98876]
[1741556212773,0.00741491,2023.1,2022.7,0.98884]
[1741556212959,0.00741491,2023.1,2022.7,0.98885]
[1741556213165,0.98872,2023.0,2022.8,0.98876]
[1741556213970,0.00741491,2023.1,2022.6,3.2078]
[1741556214271,0.98883,2022.8,2022.6,4.19666]
[1741556214570,0.98885,2022.7,2022.6,3.2078]
[1741556215275,0.98885,2022.7,2022.6,4.1967]
[1741556215473,0.98884,2022.8,2022.6,4.1967]
[1741556215771,0.98885,2022.7,2022.6,4.1967]
[1741556215974,0.98883,2022.8,2022.6,4.1967]
[1741556216162,0.98885,2022.7,2022.6,4.19669]
[1741556216567,2.47909491,2023.1,2022.6,4.19669]
[1741556217176,0.98884,2022.8,2022.7,0.98885]
[1741556217374,0.98885,2022.7,2022.6,3.2078]
[1741556217873,5.67959,2023.0,2022.4,0.98898]
[1741556218075,0.989,2022.4,2022.3,7.40733]
[1741556218374,0.98898,2022.5,2022.4,0.989]
[1741556218575,2.47206,2022.8,2022.3,3.9793]
[1741556218774,0.989,2022.4,2022.3,2.0203]
[1741556218967,0.9891,2022.2,2022.1,3.2078]
[1741556223281,1.9734,2022.3,2022.1,3.2078]
[1741556223580,0.9891,2022.2,2022.1,3.2078]
[1741556224175,0.9891,2022.2,2022.1,4.19694]
[1741556224576,0.9891,2022.2,2022.1,3.2078]
[1741556227082,0.9891,2022.2,2022.1,4.19694]
[1741556227275,0.9891,2022.2,2022.1,3.2078]
[1741556229382,0.9891,2022.2,2022.1,4.19694]
[1741556229579,3.2078,2022.4,2022.1,3.2078]
[1741556229779,3.2078,2023.0,2022.1,3.2078]
[1741556229980,0.98873,2023.0,2022.8,0.98879]
[1741556230187,2.438,2023.2,2022.7,0.98885]
[1741556230381,0.98878,2022.9,2022.7,0.98885]
[1741556230679,2.438,2023.2,2022.6,3.2078]
[1741556230882,0.98871,2023.0,2022.8,0.98877]
[1741556231087,3.2078,2023.3,2022.6,3.2078]
[1741556231278,0.9887,2023.0,2022.8,0.98877]
[1741556231878,3.2078,2023.3,2022.6,3.2078]
[1741556232078,0.98876,2022.9,2022.7,0.98882]
[1741556232480,3.2078,2023.3,2022.6,3.2078]
[1741556232682,0.98874,2023.0,2022.8,0.9888]
[1741556233487,3.2078,2023.3,2022.6,3.2078]
[1741556233691,0.98872,2023.0,2022.8,0.98879]
[1741556233892,0.98871,2023.0,2022.8,0.98879]
[1741556234593,3.2078,2023.3,2023.0,0.9887]
[1741556234982,4.19638,2023.3,2023.0,0.9887]
[1741556235691,0.98861,2023.2,2023.0,0.9887]
[1741556236091,4.19637,2023.3,2023.0,0.9887]
[1741556236392,0.98861,2023.2,2023.0,0.9887]
[1741556236693,4.19638,2023.3,2023.0,0.9887]
[1741556236894,0.98861,2023.2,2023.0,0.9887]
[1741556237095,3.2078,2023.3,2023.0,0.9887]
[1741556237489,0.98861,2023.2,2023.0,0.9887]
[1741556237989,3.2078,2023.3,2022.9,3.2078]
[1741556238203,0.98873,2023.0,2022.8,0.98877]
[1741556238392,0.98879,2022.9,2022.7,3.42583]
[1741556238697,0.98879,2022.9,2022.8,0.9888]
[1741556239295,5.67925,2023.3,2022.8,0.9888]
[1741556239495,0.9887,2023.0,2022.8,0.9888]
[1741556240084,5.67925,2023.3,2022.7,2.437]
[1741556240294,7.0728,2023.0,2022.1,0.98913]
[1741556240493,0.98909,2022.3,2022.1,0.98913]
[1741556240699,0.98909,2022.3,2022.1,0.98914]
[1741556240890,0.98913,2022.2,2022.0,0.98918]
[1741556241090,0.98909,2022.3,2022.1,0.98913]
[1741556241291,0.98909,2022.3,2021.9,5.23539903]
[1741556241485,0.98901,2022.4,2022.2,0.98906]
[1741556242096,0.98908,2022.3,2022.1,0.98911]
[1741556242397,0.98919,2022.0,2021.9,5.23539903]
[1741556242584,0.98919,2022.1,2021.9,6.22463903]
[1741556242787,5.68035,2022.4,2021.9,6.22463903]
[1741556242788,0.98919,2022.0,2021.9,6.22463903]
[1741556243499,4.3426,2022.6,2021.9,9.23539903]
[1741556243695,4.6358,2022.7,2022.2,3.2078]
[1741556243997,0.98892,2022.6,2022.2,3.2078]
[1741556244196,0.98892,2022.6,2022.4,0.98896]
[1741556244388,1.428,2022.7,2022.5,0.98895]
[1741556244589,0.98887,2022.7,2022.6,0.9889]
[1741556244998,0.98892,2022.6,2022.2,5.6438]
[1741556245201,0.98897,2022.5,2022.3,0.98901]
[1741556246097,2.47205,2022.8,2022.3,0.98901]
[1741556246297,0.98899,2022.5,2022.3,0.98902]
[1741556247198,7.1592,2023.0,2022.4,0.98897]
[1741556247199,0.98893,2022.6,2022.4,0.98897]
[1741556247898,0.98884,2022.8,2022.6,0.98887]
[1741556248092,7.1592,2023.0,2022.5,0.98891]
[1741556248093,0.98888,2022.7,2022.5,0.98891]
[1741556248398,0.98882,2022.8,2022.3,2.47263]
[1741556248595,0.98886,2022.7,2022.2,8.11651]
[1741556248793,0.98886,2022.7,2021.9,2.02759903]
[1741556248794,3.2078,2022.7,2021.9,2.02759903]
[1741556249097,0.98914,2022.2,2022.0,0.98918]
[1741556250198,2.47229,2022.6,2021.9,2.02759903]
[1741556250401,0.98908,2022.3,2022.1,0.98911]
[1741556250698,0.989,2022.5,2022.3,0.98903]
[1741556250891,3.2078,2022.7,2022.3,0.98903]
[1741556251096,0.989,2022.4,2022.3,0.98903]
[1741556251297,0.989,2022.4,2022.0,3.2078]
[1741556251496,0.98904,2022.4,2022.0,3.2078]
[1741556251699,0.98904,2022.4,2022.2,0.98906]
[1741556251897,5.67997,2022.7,2022.2,0.98906]
[1741556252399,0.98904,2022.4,2022.2,0.98906]
[1741556252594,2.47226,2022.6,2022.0,3.2078]
[1741556252797,3.2078,2022.4,2021.9,3.01680903]
[1741556253098,0.98919,2022.0,2021.9,3.01680903]
[1741556253299,0.98919,2022.0,2021.9,0.99420903]
[1741556253492,0.98919,2022.0,2021.9,0.00499903]
[1741556255398,3.2078,2022.1,2021.4,3.2078]
[1741556255606,3.2078,2021.8,2021.1,3.2078]
[1741556255897,2.47348,2021.6,2021.1,0.98962]
[1741556256100,3.2078,2021.5,2020.9,1.9639]
[1741556256296,0.98968,2021.0,2020.9,2.95362]
[1741556256504,0.98967,2021.1,2020.9,2.95362]
[1741556256690,0.98968,2021.0,2020.9,2.95362]
[1741556256896,0.99702491,2021.2,2021.0,0.98966]
[1741556257096,0.00741491,2021.2,2021.1,0.98963]
[1741556258595,0.00741491,2021.2,2021.1,4.19743]
[1741556259692,0.99700491,2021.2,2021.1,3.2078]
[1741556260001,0.98975,2020.9,2020.8,3.2078]
[1741556260296,0.98978,2020.8,2020.7,0.00741491]
[1741556261292,3.2078,2021.0,2020.7,0.00741491]
[1741556261496,2.0117,2021.1,2020.7,0.00741491]
[1741556261905,0.98978,2020.8,2020.7,0.00741491]
[1741556263796,4.0,2020.8,2020.3,3.2078]
[1741556263999,2.47446,2020.8,2020.0,6.18477]
[1741556264208,0.99004,2020.3,2020.0,6.18477]
[1741556264506,3.2078,2020.5,2020.0,5.1946]
[1741556264707,0.9901,2020.2,2020.0,3.2078]
[1741556264907,3.2078,2020.5,2019.7,1.9726]
[1741556265107,0.99013,2020.1,2019.7,1.9726]
[1741556265297,0.99013,2020.1,2019.8,0.99023]
[1741556266009,3.2078,2020.1,2019.6,0.99036]
[1741556266203,0.99024,2019.9,2019.5,0.99038]
[1741556266506,0.99024,2019.9,2019.3,3.2078]
[1741556266507,3.2078,2020.1,2019.3,3.2078]
[1741556266810,0.99038,2019.6,2019.3,3.2078]
[1741556267415,3.2078,2019.8,2019.3,3.2078]
[1741556267904,0.99038,2019.6,2019.3,4.19828]
[1741556268107,3.2078,2019.8,2019.3,3.2078]
[1741556268522,1.9954,2020.0,2019.8,0.99027]
[1741556268716,0.00741491,2020.3,2019.6,3.2078]
[1741556268911,0.00741491,2020.3,2020.0,0.99016]
[1741556269117,0.00741491,2020.3,2019.7,1.9995]
[1741556269118,0.00741491,2020.3,2019.9,3.2078]
[1741556269312,0.00741491,2020.3,2020.2,0.99008]
[1741556269820,0.98984,2020.7,2020.4,0.98997]
[1741556270021,0.98982,2020.8,2020.4,0.98997]
[1741556270222,0.98983,2020.7,2020.4,0.98997]
[1741556270722,3.2078,2021.0,2020.7,0.98981]
[1741556270922,2.436,2021.5,2020.5,5.6438]
[1741556271125,2.95336,2021.5,2020.8,3.2078]
[1741556271326,2.95336,2021.5,2021.2,0.98958]
[1741556271627,0.98967,2021.1,2020.9,2.436]
[1741556271830,3.2078,2021.3,2020.9,2.436]
[1741556272025,0.98961,2021.2,2020.9,0.98973]
[1741556272221,0.98961,2021.2,2020.8,4.19755]
[1741556272724,3.21521491,2021.3,2020.8,4.19755]
[1741556272923,0.98963,2021.2,2020.8,4.19755]
[1741556273119,0.98963,2021.2,2020.9,0.98972]
[1741556273324,0.98963,2021.2,2020.8,3.2078]
[1741556273528,3.21521491,2021.3,2020.8,3.2078]
[1741556273724,0.98961,2021.2,2020.8,4.19754]
[1741556274118,3.21521491,2021.3,2020.8,4.19754]
[1741556274119,3.21521491,2021.3,2020.8,3.2078]
[1741556274325,0.9897,2021.0,2020.6,5.01145]
[1741556274720,2.47397,2021.2,2020.4,3.2078]
[1741556274921,2.47397,2021.2,2020.3,0.00741491]
[1741556274922,0.98998,2020.4,2020.3,0.00741491]
[1741556275426,0.98998,2020.5,2020.3,0.00741491]
[1741556275631,0.98998,2020.4,2020.3,0.00741491]
[1741556276033,0.98991,2020.6,2020.3,0.00741491]
[1741556276239,0.98991,2020.6,2020.3,0.99742491]
[1741556276529,5.1098,2020.7,2020.3,0.00741491]
[1741556276830,0.98994,2020.5,2020.3,0.00741491]
[1741556277234,0.98992,2020.6,2020.3,0.99741491]
[1741556277734,0.98994,2020.5,2020.3,0.00741491]
[1741556278135,3.2078,2020.7,2020.3,0.00741491]
[1741556278535,0.98988,2020.6,2020.4,0.98996]
[1741556278935,3.2078,2020.7,2020.3,0.00741491]
[1741556279132,2.436,2020.8,2020.3,0.00741491]
[1741556279335,2.88677,2020.9,2020.6,0.98986]
[1741556279534,1.897,2020.9,2020.6,0.98986]
[1741556280033,0.98984,2020.7,2020.5,0.98991]
[1741556280336,1.897,2020.9,2020.8,0.98978]
[1741556280532,0.9898,2020.8,2020.5,3.2078]
[1741556280741,0.98975,2020.9,2020.6,0.98984]
[1741556281039,0.9897,2021.0,2020.7,0.98982]
[1741556281235,0.98975,2020.9,2020.6,0.98986]
[1741556281435,0.98979,2020.8,2020.6,0.98986]
[1741556281730,5.1251,2021.1,2020.5,4.19771]
[1741556281939,5.1251,2021.1,2020.5,3.2078]
[1741556282128,0.98998,2020.4,2020.3,0.00741491]
[1741556282537,5.9146,2020.6,2020.3,0.00741491]
[1741556282734,0.98998,2020.4,2020.3,0.00741491]
[1741556285638,5.6428,2020.8,2020.3,0.00741491]
[1741556285835,5.62555,2020.9,2020.7,0.98981]
[1741556286035,0.98975,2020.9,2020.7,0.98981]
[1741556286247,0.98975,2020.9,2020.7,0.98983]
[1741556286535,0.98969,2021.0,2020.8,0.98976]
[1741556286735,5.24821491,2021.3,2020.5,3.2078]
[1741556286934,0.98972,2021.0,2020.5,3.2078]
[1741556287142,5.24821491,2021.3,2020.9,0.9897]
[1741556287336,3.21521491,2021.3,2020.9,3.2078]
[1741556287736,4.20478491,2021.3,2021.1,0.98962]
[1741556288138,3.21521491,2021.3,2021.2,0.98959]
[1741556288346,0.00741491,2021.3,2021.0,3.03524]
[1741556288545,0.00741491,2021.3,2021.1,0.98962]
[1741556289036,0.99697491,2021.3,2021.1,0.98962]
[1741556289237,0.98959,2021.2,2021.0,3.03524]
[1741556289546,0.99699491,2021.3,2021.1,0.98961]
[1741556289747,0.00741491,2021.3,2021.0,2.0456]
[1741556290244,0.00741491,2021.3,2021.1,0.98962]
[1741556290744,0.00741491,2021.3,2021.2,0.98959]
[1741556293644,0.00741491,2021.3,2021.0,4.058]
[1741556293845,0.00741491,2021.3,2021.2,0.98959]
[1741556294045,0.00741491,2021.3,2021.2,4.19739]
[1741556294345,5.1387,2022.0,2021.7,0.9893]
[1741556294847,4.19703,2022.0,2021.7,0.98931]
[1741556295147,0.98925,2021.9,2021.7,0.98931]
[1741556295449,0.98933,2021.8,2021.6,2.05931491]
[1741556296743,0.98934,2021.7,2021.6,2.05931491]
[1741556296944,0.98933,2021.8,2021.6,2.05931491]
[1741556297341,0.98933,2021.8,2021.6,3.04867491]
[1741556297544,3.2078,2022.0,2021.6,2.05931491]
[1741556297742,0.98932,2021.8,2021.6,3.04867491]
[1741556298148,3.2078,2022.0,2021.9,0.98924]
[1741556298343,0.98926,2021.9,2021.7,0.98931]
[1741556298844,3.2078,2022.0,2021.6,4.09621491]
[1741556299744,0.98934,2021.7,2021.6,0.00741491]
[1741556299941,0.98949,2021.4,2021.3,2.949]
[1741556300143,0.98954,2021.3,2021.1,4.1974]
[1741556300344,0.98952,2021.4,2021.2,0.98959]
[1741556300544,1.9222,2021.6,2021.2,0.98956]
[1741556300747,1.9222,2021.6,2021.1,3.2078]
[1741556300941,1.9222,2021.6,2020.9,2.433]
[1741556300942,3.2078,2021.4,2020.9,5.6408]
[1741556301141,0.98959,2021.2,2021.1,0.00741491]
[1741556301945,2.47446,2020.8,2020.3,3.2078]
[1741556302145,1.9,2020.7,2020.0,3.703]
[1741556302352,0.9897,2021.0,2020.8,0.98976]
[1741556302553,3.2078,2021.5,2020.8,2.47446]
[1741556302752,0.98963,2021.2,2021.0,0.98966]
[1741556302947,0.98951,2021.4,2021.2,0.98957]
[1741556303152,0.00741491,2021.3,2020.9,2.03461491]
[1741556303356,0.98965,2021.1,2020.9,3.02433491]
[1741556303853,0.00741491,2021.3,2020.9,3.02433491]
[1741556304153,0.98963,2021.1,2020.9,3.02433491]
[1741556304352,0.00741491,2021.3,2020.9,3.02433491]
[1741556304756,0.99696491,2021.3,2021.1,0.98961]
[1741556305143,0.00741491,2021.3,2020.9,2.03461491]
[1741556305345,3.2078,2021.8,2021.2,0.98959]
[1741556305558,6.4491,2022.1,2021.5,2.47354]
[1741556305854,0.98932,2021.8,2021.6,0.98937]
[1741556306049,1.9474,2022.1,2021.4,3.2078]
[1741556306249,1.9474,2022.1,2021.6,0.98936]
[1741556306546,0.98932,2021.8,2021.6,0.98936]
[1741556307257,0.98944,2021.5,2021.4,5.2806]
[1741556307552,0.98949,2021.4,2021.2,0.98956]
[1741556307753,3.2078,2021.6,2021.0,9.5804]
[1741556307953,0.98954,2021.3,2021.1,0.98961]
[1741556308155,3.2078,2021.6,2021.0,9.5804]
[1741556308355,0.98956,2021.3,2021.1,0.98961]
[1741556308756,0.98963,2021.1,2021.0,3.9396]
[1741556308961,0.98964,2021.1,2020.9,0.99711491]